Cogmind - Beta 10.2 @@@ ROGUE MODE // 2021.04.14 @ 08:12:14 Player: kicktown Result: Self-destructed Performance ------------- Evolutions (1) 500 Regions Visited (2) 400 Robots Destroyed (42) 210 Value Destroyed (705) 705 Prototype IDs (3) 60 Alien Tech Used (0) 0 Bonus (0) 0 TOTAL SCORE: 1875 Bonus ------- None Cogmind --------- Core Integrity 268/400 Matter 265/300 Energy 265/265 System Corruption 0% Temperature Cool (0) Movement Rolling (103) Ox1 Location -9/Materials Parts ------- > --- POWER (1) -------- Improved Ion Engine > --- PROPULSION (3) --- Wheel Compact Wheel Compact Wheel > --- UTILITY (3) ------ Large Storage Unit Large Storage Unit Large Storage Unit > --- WEAPON (2) ------- Plasma Cutter > --- INVENTORY (22) --- Ion Engine Large Storage Unit Weight Redist. System Visual Processing Unit Improved Terrain Scanner Seismic Analyzer Propulsion Shielding Small Laser Particle Gun Particle Gun Improved Assault Rifle Light Cannon Rocket Launcher Rocket Launcher Datajack Mining Claw Mining Claw Peak State ------------ > --- POWER ------------ Improved Ion Engine > --- PROPULSION ------- Wheel Compact Wheel Compact Wheel > --- UTILITY ---------- Large Storage Unit Large Storage Unit Large Storage Unit > --- WEAPON ----------- Particle Gun Particle Gun > --- INVENTORY -------- Ion Engine Large Storage Unit Weight Redist. System Visual Processing Unit Improved Terrain Scanner Seismic Analyzer Propulsion Shielding Small Laser Improved Assault Rifle Light Cannon Rocket Launcher Rocket Launcher Datajack Plasma Cutter Plasma Cutter Mining Claw Mining Claw [Rating: 14] Favorites ----------- Power Ion Engine Engine Ion Engine Propulsion Compact Wheel Wheel Compact Wheel Utility Large Storage Unit Device Improved Terrain Scanner Storage Large Storage Unit Processor Seismic Analyzer Weapon Assault Rifle Energy Gun Small Laser Ballistic Gun Assault Rifle Launcher Grenade Launcher Special Weapon Mining Laser Slashing Weapon Mining Claw Special Melee Weapon Datajack Build | -11 -10 -9 ------- Run | Scr Mat Mat Slots Evolved 2 | . . 2 Power . | . . . Propulsion 1 | . . 1 Utility 1 | . . 1 Weapon . | . . . Parts Attached 47 | 8 22 17 Power 8 | 1 4 3 Engine 8 | 1 4 3 Core . | . . . Reactor . | . . . Propulsion 10 | 3 4 3 Treads . | . . . Leg . | . . . Wheel 10 | 3 4 3 Hover . | . . . Flight . | . . . Utility 6 | 2 3 1 Device 1 | 1 . . Storage 4 | 1 2 1 Processor 1 | . 1 . Hackware . | . . . Protection . | . . . Artifact . | . . . Weapon 23 | 2 11 10 Energy Gun 4 | . 2 2 Energy Cannon . | . . . Ballistic Gun 6 | 2 3 1 Ballistic Cannon . | . . . Launcher 2 | . 2 . Special Weapon 5 | . 2 3 Impact Weapon . | . . . Slashing Weapon 4 | . 2 2 Piercing Weapon . | . . . Special Melee Weapon 2 | . . 2 Unidentified Prototypes 1 | . . 1 Parts Lost 6 | . 3 3 Power 2 | . 1 1 Propulsion 3 | . 2 1 Utility . | . . . Weapon 1 | . . 1 Highest Loss Streak 2 | . 2 2 Average Slot Usage (%) 94 | . 95 86 Engine 13 | . 13 10 Wheel 24 | . 24 22 Device 7 | . 8 . Storage 14 | . 12 31 Processor 6 | . 7 . Energy Gun 2 | . 2 . Ballistic Gun 12 | . 14 . Special Weapon 2 | . 2 5 Slashing Weapon 8 | . 7 16 Naked Turns . | . . . Heaviest Build 59 | 12 41 59 Greatest Support 42 | 32 32 42 Greatest Overweight (x) 5 | . 2 5 Average Overweight (x) . | . . 2 Largest Inventory Capacity 22 | 6 16 22 Average Capacity 10 | 5 9 21 Most Carried 17 | 3 16 17 Average Carried 8 | . 8 14 Final Capacity 22 | 6 16 22 Final Carried 17 | 3 14 17 Class Distribution -------------------- 60% | Mutant 30% | Scavenger-Mutant 9% | Hauler-Mutant Dominant Class ---------------- Mutant | -10/Materials Hauler-Mutant | -9/Materials Resources | -11 -10 -9 ----------- Run | Scr Mat Mat Matter Collected 1198 | 451 627 120 Remotely . | . . . Salvage Created 1349 | 245 779 325 Parts 102 | 18 67 17 Haulers Intercepted 2 | . 2 . Recyclers Shooed 1 | . 1 . Parts Field Recycled . | . . . Retrieved Matter . | . . . Parts Self-Destructed . | . . . Prevented . | . . . Kills | -11 -10 -9 ------- Run | Scr Mat Mat Combat Hostiles Destroyed 18 | . 15 3 Melee 5 | . 2 3 Guns 10 | . 10 . AOE 3 | . 3 . Classes Destroyed 10 | 3 6 1 Worker 6 | 2 3 1 Tunneler 7 | 5 2 . Hauler 2 | . 2 . Recycler 4 | 1 1 2 Mechanic 1 | . 1 . Operator 1 | . 1 . Watcher 3 | . 3 . Swarmer 6 | . 6 . Grunt 11 | . 9 2 Sentry 1 | . . 1 Best Kill Streak 6 | 6 6 5 Combat Bots Only 5 | . 5 2 Max Kills in Single Turn 3 | 1 3 1 Gunslinging . | . . . Exploded 3 | . 3 . Melee 1 | . 1 1 Uniques/NPCs Destroyed . | . . . Combat | -11 -10 -9 -------- Run | Scr Mat Mat Damage Taken 778 | . 353 425 Core 215 | . 83 132 Absorbed by Shields . | . . . Core Remaining (%) 83 | 100 66 . Volleys Fired 102 | 16 85 1 Largest 2 | 2 2 2 Hottest 100 | 40 100 40 Shots Fired 190 | 32 156 2 Gun 174 | 32 142 . Cannon . | . . . Launcher 1 | . 1 . Special 15 | . 13 2 Kinetic 161 | 32 129 . Thermal 28 | . 26 2 Explosive 1 | . 1 . Electromagnetic . | . . . Robot Hit Streak 13 | 10 13 1 Robot Miss Streak 4 | 3 4 1 Penetration Max . | . . . Secondary Targets 3 | . 3 . Max Gunslinging Chain 1 | . 1 . Shots Hit Robots 121 | 21 80 20 Core Hits 59 | 9 43 7 Critical Hits 1 | . 1 . Critical Kills 1 | . 1 . Critical Parts Destroyed . | . . . Melee Attacks 35 | . 8 27 Impact . | . . . Slashing 32 | . 8 24 Piercing . | . . . Sneak Attacks 8 | . 1 7 Combat Hostiles . | . . . Follow-up Attacks 4 | . . 4 Damage Inflicted 2067 | 281 1206 580 Guns 1142 | 281 861 . Cannons . | . . . Explosions 134 | . 134 . Melee 709 | . 139 570 Ramming . | . . . Kinetic 1067 | 281 786 . Thermal 157 | . 147 10 Explosive 134 | . 134 . Electromagnetic . | . . . Impact . | . . . Slashing 709 | . 139 570 Piercing . | . . . Highest Corruption . | . . . Average Corruption . | . . . Corruption Purged . | . . . Overload Shots . | . . . Overflow Damage 58 | . 5 53 Projectiles . | . . . Explosions 5 | . 5 . Melee 53 | . . 53 Knockbacks . | . . . Impact . | . . . Kinetic . | . . . Secondary . | . . . Self-Inflicted Damage . | . . . Shots . | . . . Rammed . | . . . Targets Rammed . | . . . Kicked . | . . . Crushed . | . . . Highest Temperature 100 | . 100 . Average Temperature 29 | . 29 . Received Heat Transfer 381 | . 174 207 Siege Activations . | . . . Robots Corrupted . | . . . Combat Hostiles . | . . . Parts Fried . | . . . Impact Corruptions . | . . . Robots Melted . | . . . Combat Hostiles . | . . . Parts Melted . | . . . Heat Transferred 362 | . 325 37 Parts Sabotaged . | . . . Parts Stolen . | . . . Parts Stripped . | . . . Power Chain Reactions . | . . . Missiles Intercepted . | . . . Alert | -11 -10 -9 ------- Run | Scr Mat Mat Peak Influence 231 | 40 231 160 Initial 26 | . 26 . Average 71 | 23 72 87 Maximum Alert Level 1 | . 1 . Low Security (%) 97 | 100 97 100 Level 1 2 | . 2 . Level 2 . | . . . Level 3 . | . . . Level 4 . | . . . Level 5 . | . . . High Security . | . . . Max Security . | . . . Squads Dispatched 3 | . 3 . Investigation 2 | . 2 . Extermination . | . . . Reinforcement 1 | . 1 . Assault . | . . . Garrison . | . . . Intercept . | . . . Construction Impeded . | . . . Haulers Reinforced . | . . . Stealth | -11 -10 -9 --------- Run | Scr Mat Mat Distress Signals 1 | . 1 . Communications Jammed . | . . . Distress Signals . | . . . Times Spotted 38 | . 31 7 Peak Tracking Total 5 | . 4 5 Tactical Retreats 1 | . . 1 Traps | -11 -10 -9 ------- Run | Scr Mat Mat Traps Triggered 2 | . 2 . Indirectly . | . . . Trap Hack Attempts . | . . . Triggered . | . . . Disarmed . | . . . Reprogrammed . | . . . Reused . | . . . Traps Extracted . | . . . Installed . | . . . Triggered . | . . . Machines | -11 -10 -9 ---------- Run | Scr Mat Mat Machines Disabled 4 | . 4 . Max in Single Turn 1 | . 1 . Machines Sabotaged . | . . . Garrisons Compromised . | . . . Overloaded Fab Kills . | . . . Fab Network Shutdowns . | . . . Hacking | -11 -10 -9 --------- Run | Scr Mat Mat Machines Accessed 9 | . 9 . Terminals 6 | . 6 . Fabricators . | . . . Repair Stations 1 | . 1 . Recycling Units 2 | . 2 . Scanalyzers . | . . . Garrison Access . | . . . Total Hacks 20 | . 20 . Successful 10 | . 10 . Failed 10 | . 10 . Catastrophic 1 | . 1 . Database Lockouts . | . . . Manual 7 | . 7 . Terminals 14 | . 14 . Fabricators . | . . . Repair Stations 3 | . 3 . Recycling Units 3 | . 3 . Scanalyzers . | . . . Garrison Access . | . . . Terminal Hacks 7 | . 7 . Part Schematic 2 | . 2 . Prototype ID Bank 1 | . 1 . Level Access Points 1 | . 1 . Terminal Index 1 | . 1 . Alert Level 1 | . 1 . Locate Traps 1 | . 1 . Fabricator Hacks . | . . . Repair Station Hacks 2 | . 2 . Scan Component 1 | . 1 . Repair 1 | . 1 . Recycling Unit Hacks 1 | . 1 . Retrieve Components 1 | . 1 . Scanalyzer . | . . . Garrison Access Hacks . | . . . Unauthorized Hacks . | . . . Terminals . | . . . Fabricators . | . . . Repair Stations . | . . . Recycling Units . | . . . Scanalyzers . | . . . Garrison Access . | . . . Data Cores Recovered . | . . . Used . | . . . Hacking Detections 7 | . 7 . Full Trace Events 1 | . 1 . Feedback Events . | . . . Feedback Blocked . | . . . Robot Schematics Acquired . | . . . Robots Built . | . . . Matter . | . . . Time . | . . . Total Robot Build Rating . | . . . Part Schematics Acquired 2 | . 2 . Parts Built . | . . . Matter . | . . . Time . | . . . Total Part Build Rating . | . . . Parts Repaired 1 | . 1 . Time 26 | . 26 . Parts Recycled . | . . . Recycled Matter . | . . . Retrieved Matter . | . . . Retrieved Components 10 | . 10 . Parts Scanalyzed . | . . . Part Schematics Acquired . | . . . Parts Damaged . | . . . Bothacking | -11 -10 -9 ------------ Run | Scr Mat Mat Used RIF Installer . | . . . Robots Hacked 2 | . . 2 Non-combat 2 | . . 2 Combat . | . . . Robot Hacks Applied 3 | . . 3 no_distress 2 | . . 2 find_recycling 1 | . . 1 Relay Couplers Released . | . . . Robots Rewired . | . . . Allies Hacked . | . . . Hacks Repelled . | . . . Allies | -11 -10 -9 -------- Run | Scr Mat Mat Total Allies . | . . . Largest Group . | . . . Highest-Rated Group . | . . . Highest-Rated Ally . | . . . Total Orders . | . . . Ally Attacks . | . . . Total Damage . | . . . Kills . | . . . Allies Corrupted . | . . . Allies Melted . | . . . Intel | -11 -10 -9 ------- Run | Scr Mat Mat Robot Analysis Total . | . . . Derelict Logs Recovered . | . . . Drone Launches . | . . . Drone Recoveries . | . . . Exploration | -11 -10 -9 ------------- Run | Scr Mat Mat Turns Passed 2934 | 157 2479 298 Spaces Moved 2126 | 98 1872 156 Core 3 | 3 . . Treads . | . . . Legs . | . . . Wheels 2123 | 95 1872 156 Hover . | . . . Flight . | . . . Fastest Speed 50 | 50 90 100 Average Speed 100 | 96 99 109 Slowest Speed 130 | 100 120 130 Overloaded Moves . | . . . Propulsion Burnouts . | . . . Robots Hopped . | . . . Cave-ins Triggered . | . . . Exploration Rate (%) 38 | 4 99 11 Regions Visited 2 Branch Regions . Pre-discovered Areas . | . . . Known Exits Taken 1 | . 1 . Unknown Exits Taken 1 | 1 . . Scrap Searched . | . . . Spaces Dug 3 | . 3 . Terrain Destroyed 12 | . 12 . Melee 2 | . 2 . Projectile 1 | . 1 . AOE 9 | . 9 . Terrain Rammed . | . . . Walls Destroyed . | . . . Machines Disabled . | . . . Actions | -11 -10 -9 --------- Run | Scr Mat Mat Total 2644 | 125 2288 231 Wait 272 | . 250 22 Move 2124 | 97 1871 156 Hop . | . . . Pick Up 40 | 3 30 7 Fast Attach 20 | 8 9 3 Attach 4 | . 2 2 Detach 1 | . . 1 Swap 23 | . 11 12 Drop 29 | 1 23 5 Fire 102 | 16 85 1 Melee 29 | . 7 22 Ram . | . . . Kick . | . . . Crush . | . . . Escape Stasis . | . . . Rewire . | . . . Trap . | . . . Miscellaneous . | . . . Route ------- -11/Scrapyard -10/Materials (discovered 4 exits: *Mat x3 / [*Min]) -9/Materials History --------- Turn | Location | Event 12 | -11/Scrapyard | Discovered new exit (range 15) 158 | -11/Scrapyard | Entered Materials 313 | -10/Materials | Build established: Mutant 442 | -10/Materials | Identified exit to Materials 702 | -10/Materials | Build established: Scavenger-Mutant 969 | -10/Materials | Discovered new exit (range 15) 1897 | -10/Materials | Build established: Mutant 2576 | -10/Materials | Repaired Hover Unit 2637 | -10/Materials | Entered another Materials area 2637 | -9/Materials | Evolved 2 slots: Propulsion x1, Utility x1 2935 | -9/Materials | Self-destructed Last Messages --------------- 02805_ R-06 Scavenger collects Wheel. 02806_ Sneak attack on R-06 Scavenger. 02806_ R-06 Scavenger destroyed. 02809_ Sneak attack on R-06 Scavenger. 02809_ R-06 Scavenger destroyed. 02815_ Acquired Com. Wheel. 02824_ Dropped Wheel. 02825_ Dropped Lgt. Ion Engine. 02826_ Acquired Imp. Ion Engine. 02828_ Dropped Hover Unit. 02838_ Dropped Grenade Launcher. 02840_ Acquired Rocket Launcher. 02845_ Acquired Plasma Cutter. 02850_ Acquired Particle Gun. 02864_ Acquired 60 matter. 02891_ Sneak attack on U-05 Engineer. 02891_ Jacked U-05 Engineer... >>no_distress Distress signal routine blocked. 02933_ Plasma Cutter destroyed. Map ----- +----------------------------------------------------+ | ?###########??????########???????????????????????? | | ?# ########| #???????????????????????? | | ?# + + """ #???????????????????????? | | ?#= ######## """ #???????????????????????? | | ?#% #?###### """ #???????????????????????? | | ?##+##+####### [# #???????????????????????? | | ??# +] # #???????????????????????? | | ??# = # [[ ####+####??????????????????????? | | ??# %! # # #??????????????????????? | | ??# !%= + # #??????????????????????? | | ?##+##+##!* # # #??????????????????????? | | ?# #% [ # ##### #??????????????????????? | | ?# #%=! # #???# #??????????????????????? | | ?# """ #=*= # #???# #??????????????????????? | | ?# """ # ########## ##########+### ??????? | | ?# """ !# ?????? | | ?# # ######## #### ?????? | | ?######## #??????# #??# ?????? | | ????????# #??????# #??#######+########???????????? | | ????????# #??????# #?????# #??????????????? | | ######### ###?####+#?????# """ #??????????????? | | # # #?????# """ #??????????????? | | """ # # """#?????# """ #??????????????? | | """ + + """#?????# #??????????????? | | """ # # """# ### """ #??????????????? | | # # + Y @ """ #??????????????? | | ### ###? | # ### """ #??????????????? | | #######?# #???######?????# #??????????????? | | ????????# #??????????????##########??????????????? | | ????????# #??????????????????????????????????????? | | ????????# #??????????????????????????????????????? | | ????????# #??????????????????????????????????????? | | ????????# #??????????????????????????????????????? | | ????????# #??????????????????????????????????????? | | ????????? ???????????????????????????????????????? | | ????????? ???????????????????????????????????????? | | ????????? ???????????????????????????????????????? | | ????????? ???????????????????????????????????????? | | ????????? ???????????????????????????????????????? | | ?????????????????????????????????????????????????? | | ?????????????????????????????????????????????????? | | ?????????????????????????????????????????????????? | | ?????????????????????????????????????????????????? | | ?????????????????????????????????????????????????? | | ?????????????????????????????????????????????????? | | ?????????????????????????????????????????????????? | | ?????????????????????????????????????????????????? | | ?????????????????????????????????????????????????? | | ?????????????????????????????????????????????????? | | ?????????????????????????????????????????????????? | +----------------------------------------------------+ Best States ------------- Heat Dissipation 28 Energy Generation 12 Energy Capacity 265 Matter Stores 300 Matter Capacity 300 Sight Range 16 Terrain Scan Range 16 Terrain Scan Density 60 Evasion (%) 42 Item Schematics ----------------- Hcp. Storage Unit | -10/Materials | Hacked Propulsion Shielding | -10/Materials | Hacked Robot Schematics ------------------ None Fabricated ------------ Nothing Alien Tech Used ----------------- None Achievements -------------- None Challenges ------------ None Game ------ Seed FocalStructuralHumpback Manual? 0 Play Time 01:22:22 Cumulative 9.7 hours Start 2021.04.13 @ 21:56:46 End 2021.04.14 @ 08:12:14 Sessions 1 Manual Loads 0 Difficulty Rogue Special Mode None Game No. 5 Rogue 5 Adventurer 0 Explorer 0 Win Type - Total 0 Types 0/0/0/0/0/0/0/0/0 Lore% 4 Gallery% 11 Achievement% 16 Wizard Run 0 Options --------- ASCII 0 Keyboard 0 Movement Mouse Keybinds 0 Fullscreen 2 Font 18/TerminusBold Map View 76x50 Tactical HUD 1 Map Filters NONE Filters NONE Steam 1 RUN: 8c5451ad-5c37-4e68-b6ba-8f4c85f8797f